fUSD/lending_fUSD_20250312
["ID","MTS","AMOUNT","RATE_DAILY","PERIOD"]
[356002102,1741792235691,-498.53857494,0.00012567,2]
[356002103,1741792235701,-1000.0,0.00012576,2]
[356002104,1741792235710,-702.79,0.00012667,2]
[356002105,1741792235720,-1195.35,0.00012689,2]
[356002106,1741792235729,-866.89,0.00012739,2]
[356002107,1741792235739,-409.44516036,0.000129,2]
[356002108,1741792235748,-1013.0,0.00012923,2]
[356002109,1741792235760,-151.0,0.00012923,2]
[356002110,1741792235770,-3933.0,0.00012923,2]
[356002111,1741792235779,-4000.0,0.0001295,8]
[356002112,1741792235788,-600.06,0.00012983,2]
[356002113,1741792235799,-5264.969247,0.00012991,2]
[356002114,1741792235808,-300.0,0.00012999,2]
[356002115,1741792235817,-650.0,0.00013,2]
[356002116,1741792235831,-1429.2874,0.00013,2]
[356002117,1741792235840,-2947.9088,0.00013,2]
[356002118,1741792235850,-1038.1722,0.00013,2]
[356002119,1741792235859,-354.71,0.00013,2]
[356002120,1741792235869,-354.71,0.00013,2]
[356002121,1741792236020,-354.71,0.00013,2]
[356002122,1741792236030,-354.71,0.00013,2]
[356002123,1741792236040,-354.71,0.00013,2]
[356002124,1741792236050,-354.71,0.00013,2]
[356002125,1741792236059,-354.71,0.00013,2]
[356002126,1741792236068,-354.71,0.00013,2]
[356002127,1741792236080,-354.71,0.00013,2]
[356002128,1741792236091,-354.71,0.00013,2]
[356002129,1741792236100,-354.71,0.00013,2]
[356002130,1741792236110,-354.71,0.00013,2]
[356002131,1741792236119,-354.71,0.00013,2]
[356002132,1741792236128,-354.71,0.00013,2]
[356002133,1741792236138,-354.71,0.00013,2]
[356002134,1741792236147,-354.71,0.00013,2]
[356002135,1741792236156,-354.71,0.00013,2]
[356002136,1741792236165,-354.71,0.00013,2]
[356002137,1741792236174,-354.71,0.00013,2]
[356002138,1741792236184,-354.71,0.00013,2]
[356002139,1741792236194,-354.71,0.00013,2]
[356002140,1741792236204,-354.71,0.00013,2]
[356002141,1741792236213,-354.71,0.00013,2]
[356002142,1741792236222,-354.71,0.00013,2]
[356002143,1741792236231,-354.71,0.00013,2]
[356002144,1741792236240,-354.71,0.00013,2]
[356002145,1741792236250,-354.71,0.00013,2]
[356002146,1741792236259,-354.71,0.00013,2]
[356002147,1741792236269,-354.71,0.00013,2]
[356002148,1741792236278,-354.71,0.00013,2]
[356002149,1741792236287,-354.71,0.00013,2]
[356002150,1741792236296,-866.89,0.00013013,2]
[356002151,1741792236306,-350.46,0.00013095,2]
[356002152,1741792236315,-866.89,0.00013287,2]
[356002153,1741792236327,-866.89,0.00013561,2]
[356002154,1741792236337,-354.71,0.0001369,2]
[356002155,1741792236347,-500.0,0.00013699,2]
[356002156,1741792236356,-150.0,0.00013699,2]
[356002157,1741792236367,-200.0,0.00013699,2]
[356002158,1741792236377,-500.0,0.00013699,2]
[356002159,1741792236387,-500.0,0.00013699,2]
[356002160,1741792236397,-500.0,0.00013699,2]
[356002161,1741792236407,-500.0,0.00013699,2]
[356002162,1741792236416,-325.43468644,0.00013699,2]
[356002163,1741792236426,-500.0,0.00013699,2]
[356002164,1741792236435,-158.29043156,0.00013699,2]
[356002165,1741792236445,-161.21938976,0.00013699,2]
[356002166,1741792236456,-151.22210483,0.00013699,2]
[356002167,1741792236465,-500.0,0.00013699,2]
[356002168,1741792236475,-500.0,0.00013699,2]
[356002169,1741792236484,-469.77797429,0.00013699,2]
[356002170,1741792236494,-346.73824257,0.000137,2]
[356002171,1741792236504,-684.0,0.000137,2]
[356002172,1741792236513,-510.19831654,0.000137,2]
[356002173,1741792236523,-1000.0,0.0001372,2]
[356002174,1741792236532,-6523.74590622,0.00013797,2]
[356002175,1741792236543,-866.89,0.00013835,2]
[356002176,1741792236552,-498.53857494,0.00013901,2]
[356002177,1741792236561,-150.0,0.00014059,2]
[356002178,1741792236572,-866.89,0.00014109,2]
[356002179,1741792236581,-600.06,0.00014163,2]
[356002180,1741792236591,-866.89,0.00014383,2]
[356002181,1741792236600,-350.46,0.00014404,2]
[356002182,1741792236610,-150.0,0.0001442,2]
[356002183,1741792236619,-866.89,0.00014657,2]
[356002184,1741792236629,-150.0,0.0001478,2]
[356002185,1741792236638,-150.0,0.00014856,2]
[356002186,1741792236647,-571.0,0.00014856,2]
[356002187,1741792236657,-786.0,0.00014856,2]
[356002188,1741792236666,-541.0,0.00014856,2]
[356002189,1741792236675,-907.0,0.00014856,2]
[356002190,1741792236684,-1427.0,0.00014856,2]
[356002191,1741792236693,-1269.0,0.00014856,2]
[356002192,1741792236703,-4076.0,0.00014856,2]
[356002193,1741792236712,-702.79,0.00014891,2]
[356002194,1741792236722,-866.89,0.00014931,2]
[356002195,1741792236732,-2000.0,0.00015,30]
[356002196,1741792236744,-700.0,0.00015,2]
[356002197,1741792236754,-300.0,0.00015068,2]
[356002198,1741792236763,-150.0,0.00015141,2]
[356002199,1741792236772,-866.89,0.00015205,2]
[356002200,1741792236783,-170.60869874,0.00015207,2]
[356002201,1741792236793,-498.53857494,0.00015235,2]
[356002202,1741792236802,-6523.74590622,0.00015262,2]
[356002203,1741792236811,-866.89,0.00015479,2]
[356002204,1741792236823,-150.0,0.00015501,2]
[356002205,1741792236832,-350.46,0.00015714,2]
[356002206,1741792236843,-866.89,0.00015753,2]
[356002207,1741792236852,-150.0,0.00015862,2]
[356002208,1741792236862,-870.646,0.00015923,2]
[356002209,1741792236872,-866.89,0.00016027,2]
[356002210,1741792236881,-6355.13,0.00016116,2]
[356002211,1741792236891,-150.0,0.00016222,2]
[356002212,1741792236901,-866.89623178,0.00016301,2]
[356002213,1741792236910,-300.0,0.00016438,2]
[356002214,1741792236924,-726.75,0.00016493,30]
[356002215,1741792236933,-498.53857494,0.00016569,2]
[356002216,1741792236943,-150.0,0.00016583,2]
[356002217,1741792236953,-711.32,0.000166,7]
[356002218,1741792236963,-6523.74590622,0.00016728,2]
[356002219,1741792236973,-150.0,0.00016943,2]
[356002220,1741792236982,-750.0,0.00017,2]
[356002221,1741792236992,-702.79,0.00017115,2]
[356002222,1741792237002,-150.0,0.00017304,2]
[356002223,1741792237011,-150.0,0.00017664,2]
[356002224,1741792237021,-502.36,0.00017728,2]
[356002225,1741792237030,-600.0,0.00017808,2]
[356002226,1741792237040,-610.7351781,0.00017815,2]
[356002227,1741792237050,-571.0,0.00017856,2]
[356002228,1741792237059,-170.60869874,0.00017861,2]
[356002229,1741792237069,-498.53857494,0.00017902,2]
[356002230,1741792237079,-150.0,0.00018025,2]
[356002231,1741792237089,-200.0,0.00018082,2]
[356002232,1741792237099,-6523.74590622,0.00018193,2]
[356002233,1741792237108,-150.0,0.00018385,2]
[356002234,1741792237118,-153.77,0.000186,2]
[356002235,1741792237128,-153.77,0.000186,2]
[356002236,1741792237137,-150.0,0.00018746,2]
[356002237,1741792237147,-800.0,0.00019,2]
[356002238,1741792237156,-893.84681126,0.00019,2]
[356002239,1741792237166,-150.0,0.00019106,2]
[356002240,1741792237175,-1000.09593,0.00019178,2]
[356002241,1741792237184,-1000.36396143,0.00019178,2]
[356002242,1741792237194,-1000.0,0.00019178,2]
[356002243,1741792237203,-452.4826436,0.00019178,2]
[356002244,1741792237212,-507.97544942,0.00019178,2]
[356002245,1741792237221,-684.79741696,0.000192,2]
[356002246,1741792237230,-498.53857494,0.00019236,2]
[356002247,1741792237239,-702.79,0.00019339,2]
[356002248,1741792237249,-36050.61499741,0.00019373,2]
[356002249,1741792237258,-150.0,0.00019467,2]
[356002250,1741792237267,-547.0,0.00019631,5]
[356002251,1741792237276,-547.0,0.00019631,5]
[356002252,1741792237286,-548.0,0.00019631,5]
[356002253,1741792237295,-547.0,0.00019631,5]
[356002254,1741792237304,-6523.74590622,0.00019659,2]
[356002255,1741792237313,-150.0,0.00019827,2]
[356002256,1741792237324,-354.71,0.0001999,2]
[356002257,1741792237333,-3000.0,0.0002,2]
[356002258,1741792237342,-1500.0,0.0002,2]
[356002259,1741792237351,-2000.0,0.0002,4]
[356002260,1741792237361,-150.0,0.00020188,2]
[356002261,1741792237370,-170.60869874,0.00020514,2]
[356002262,1741792237381,-174.12,0.00020548,2]
[356002263,1741792237390,-150.0,0.00020548,2]
[356002264,1741792237399,-498.53857494,0.0002057,2]
[356002265,1741792237409,-571.0,0.00020856,2]
[356002266,1741792237418,-726.75,0.00020971,30]
[356002267,1741792237427,-850.0,0.00021,2]
[356002268,1741792237436,-2000.0,0.00021,4]
[356002269,1741792237446,-6523.74590622,0.00021124,2]
[356002270,1741792237456,-592.76,0.000212,14]
[356002271,1741792237466,-702.79,0.00021563,2]
[356002272,1741792237475,-498.53857494,0.00021903,2]
[356002273,1741792237485,-2000.0,0.00022,4]
[356002274,1741792237494,-6523.74590622,0.0002259,3]
[356002275,1741792237503,-3000.0,0.000227,2]
[356002276,1741792237512,-1500.0,0.000227,2]
[356002277,1741792237521,-900.0,0.00023,2]
[356002278,1741792237530,-152.0,0.00023,2]
[356002279,1741792237539,-2000.0,0.00023,4]
[356002280,1741792237548,-170.60869874,0.00023168,2]
[356002281,1741792237559,-498.53857494,0.00023237,2]
[356002282,1741792237569,-500.0,0.0002366,2]
[356002283,1741792237587,-702.79,0.00023787,2]
[356002284,1741792237598,-1282.02,0.00023836,2]
[356002285,1741792237608,-2000.0,0.00024,4]
[356002286,1741792237619,-6523.74590622,0.00024055,3]
[356002287,1741792237628,-152.0,0.00024164,2]
[356002288,1741792237639,-498.53857494,0.00024571,2]
[356002289,1741792237649,-1000.0,0.00024658,2]
[356002290,1741792237659,-500.0,0.00024756,7]
[356002291,1741792237671,-651.7717631,0.00024783,2]
[356002292,1741792237680,-5593.8858664,0.00024783,2]
[356002293,1741792237691,-5922.8024857,0.00024783,2]
[356002295,1741792237701,-151.0,0.000248,7]
[356002296,1741792237710,-151.0,0.000248,7]
[356002297,1741792237720,-151.0,0.000248,7]
[356002298,1741792237729,-151.0,0.000248,7]
[356002299,1741792237738,-151.0,0.000248,7]
[356002301,1741792237748,-151.0,0.000248,7]
[356002303,1741792237760,-151.0,0.000248,7]
[356002304,1741792237769,-151.0,0.000248,7]
[356002305,1741792237778,-151.0,0.000248,7]
[356002306,1741792237789,-151.0,0.000248,7]
[356002307,1741792237799,-151.0,0.000248,7]
[356002308,1741792237808,-151.0,0.000248,7]
[356002309,1741792237817,-151.0,0.000248,7]
[356002310,1741792237833,-151.0,0.000248,7]
[356002311,1741792237844,-151.0,0.000248,7]
[356002312,1741792237855,-151.0,0.000248,7]
[356002313,1741792237865,-151.0,0.000248,7]
[356002314,1741792237875,-235.33061585,0.000248,7]
[356002315,1741792237884,-604396.449921,0.000248,3]
[356002316,1741792237894,-692.8083481,0.00024883,2]
[356002318,1741792237903,-733.8449331,0.00024883,2]
[356002319,1741792237912,-151.407169,0.000249,7]
[356002320,1741792237921,-151.0,0.000249,7]
[356002321,1741792237931,-151.0,0.000249,7]
[356002322,1741792237940,-151.0,0.000249,7]
[356002323,1741792237949,-151.713795,0.000249,7]
[356002324,1741792237959,-151.129158,0.000249,7]
[356002325,1741792237968,-385.011038,0.000249,7]
[356002326,1741792237977,-151.0,0.000249,7]
[356002327,1741792237987,-385.011038,0.000249,7]
[356002328,1741792237996,-151.0,0.000249,7]
[356002329,1741792238005,-240.92512,0.000249,7]
[356002330,1741792238015,-151.0,0.000249,7]
[356002331,1741792238025,-151.0,0.000249,7]
[356002332,1741792238034,-151.411126,0.000249,7]
[356002333,1741792238043,-151.0,0.000249,7]
[356002334,1741792238052,-151.0,0.000249,7]
[356002335,1741792238062,-151.0,0.000249,7]
[356002336,1741792238073,-151.0,0.000249,7]
[356002337,1741792238082,-151.0,0.000249,7]
[356002338,1741792238092,-151.0,0.000249,7]
[356002339,1741792238102,-151.0,0.000249,7]
[356002340,1741792238111,-151.306837,0.000249,7]
[356002341,1741792238120,-151.375973,0.000249,7]
[356002342,1741792238130,-151.0,0.000249,7]
[356002343,1741792238139,-151.0,0.000249,7]
[356002344,1741792238149,-151.0,0.000249,7]
[356002345,1741792238158,-242.991163,0.000249,7]
[356002346,1741792238168,-151.0,0.000249,7]
[356002347,1741792238177,-242.991163,0.000249,7]
[356002348,1741792238187,-151.578281,0.000249,7]
[356002349,1741792238196,-3100.0,0.00025,7]
[356002350,1741792238206,-950.0,0.00025,2]
[356002351,1741792238215,-150.0,0.00025,2]
[356002352,1741792238224,-150.0,0.00025,2]
[356002353,1741792238234,-150.0,0.00025,2]
[356002354,1741792238243,-150.0,0.00025,2]
[356002355,1741792238253,-150.0,0.00025,2]
[356002356,1741792238262,-150.0,0.00025,2]
[356002357,1741792238272,-150.0,0.00025,2]
[356002358,1741792238281,-171.219,0.00025,2]
[356002360,1741792238290,-2000.0,0.00025,4]
[356002362,1741792238300,-280.0,0.000253,10]
[356002364,1741792238309,-156.0,0.00025373,2]
[356002366,1741792238319,-726.75,0.0002545,30]
[356002368,1741792238330,-3000.0,0.000255,2]
[356002370,1741792238340,-6523.74590622,0.00025521,4]
[356002372,1741792238349,-409.44516034,0.00025567,2]
[356002374,1741792238359,-500.0,0.00025578,7]
[356002376,1741792238370,-170.60869874,0.00025821,2]
[356002378,1741792238380,-498.53857494,0.00025905,2]
[356002379,1741792238389,-2000.0,0.00026,4]
[356002380,1741792238399,-702.79,0.00026011,2]
[356002382,1741792238552,-500.0,0.000264,7]
[356002384,1741792238562,-996.7,0.00026849,2]
[356002386,1741792238573,-677.95,0.00026849,2]
[356002388,1741792238582,-6523.74590622,0.00026986,4]
[356002390,1741792238592,-2000.0,0.00027,4]
[356002392,1741792238602,-1000.0,0.00027,4]
[356002394,1741792238611,-205.143619,0.00027,7]
[356002396,1741792238621,-150.0,0.00027,2]
[356002398,1741792238630,-1000.0,0.00027,2]
[356002400,1741792238639,-2110.0,0.00027092,2]
[356002402,1741792238648,-1000.0,0.000271,4]
[356002404,1741792238657,-1000.0,0.000272,4]
[356002406,1741792238667,-498.53857494,0.00027238,2]
[356002408,1741792238676,-1000.0,0.000273,4]
[356002410,1741792238685,-350.0,0.00027397,2]
[356002412,1741792238695,-500.0,0.00027397,7]
[356002414,1741792238704,-500.0,0.00027397,2]
[356002416,1741792238714,-2110.0,0.00027592,2]
[356002418,1741792238723,-350.0,0.00027671,2]
[356002420,1741792238733,-500.0,0.00027671,7]
[356002422,1741792238747,-3999.95163904,0.00027672,2]
[356002424,1741792238756,-391.0,0.0002783,15]
[356002426,1741792238765,-152.0,0.0002791,2]
[356002428,1741792238774,-350.0,0.00027945,2]
[356002430,1741792238783,-500.0,0.00027945,7]
[356002432,1741792238794,-62000.0,0.00028,7]
[356002434,1741792238803,-2000.0,0.00028,4]
[356002436,1741792238813,-3100.0,0.00028,7]
[356002437,1741792238824,-1000.0,0.0002801,2]
[356002440,1741792238833,-500.0,0.00028044,7]
[356002441,1741792238843,-6048.64797039,0.00028092,2]
[356002443,1741792238852,-2110.0,0.00028092,2]
[356002445,1741792238862,-3000.0,0.000282,2]
[356002447,1741792238871,-350.0,0.00028219,2]
[356002449,1741792238880,-702.79,0.00028234,2]
[356002451,1741792238889,-1500.0,0.00028437,18]
[356002453,1741792238899,-2000.0,0.00028449,2]
[356002455,1741792238908,-2000.0,0.00028449,2]
[356002457,1741792238918,-2000.0,0.00028449,2]
[356002459,1741792238927,-6523.74590622,0.00028452,5]
[356002461,1741792238936,-170.60869874,0.00028475,2]
[356002463,1741792238946,-774.8815181,0.0002848,2]
[356002465,1741792238955,-6251.7191051,0.0002848,2]
[356002467,1741792238965,-6580.6357244,0.0002848,2]
[356002469,1741792238974,-350.0,0.00028493,2]
[356002471,1741792238984,-250.0,0.00028499,5]
[356002473,1741792238993,-250.0,0.00028499,10]
[356002475,1741792239002,-396.86503923,0.00028499,15]
[356002477,1741792239011,-20460.14090638,0.000285,45]
[356002479,1741792239020,-593618.50425399,0.000285,30]
[356002481,1741792239030,-507.8997223,0.000285,2]
[356002483,1741792239039,-200.0,0.000285,2]
[356002485,1741792239048,-151.0,0.000285,7]
[356002487,1741792239057,-151.0,0.000285,7]
[356002489,1741792239067,-151.0,0.000285,7]
[356002491,1741792239080,-278.290864,0.000285,7]
[356002493,1741792239089,-186.89082,0.000285,7]
[356002495,1741792239098,-385.011038,0.000285,7]
[356002497,1741792239107,-151.0,0.000285,7]
[356002499,1741792239117,-385.011038,0.000285,7]
[356002501,1741792239126,-151.0,0.000285,7]
[356002503,1741792239136,-151.0,0.000285,7]
[356002505,1741792239145,-151.0,0.000285,7]
[356002507,1741792239154,-228.859728,0.000285,7]
[356002509,1741792239163,-151.124647,0.000285,7]
[356002511,1741792239172,-155.492991,0.000285,7]
[356002513,1741792239182,-151.0,0.000285,7]
[356002515,1741792239191,-151.0,0.000285,7]
[356002517,1741792239200,-200.0,0.000285,17]
[356002519,1741792239209,-151.541099,0.000285,7]
[356002521,1741792239219,-151.614811,0.000285,7]
[356002523,1741792239228,-151.0,0.000285,7]
[356002525,1741792239238,-151.0,0.000285,7]
[356002527,1741792239247,-151.0,0.000285,7]
[356002529,1741792239256,-151.0,0.000285,7]
[356002531,1741792239265,-151.0,0.000285,7]
[356002533,1741792239273,-151.0,0.000285,7]
[356002535,1741792239283,-151.0,0.000285,7]
[356002537,1741792239292,-1000.0,0.000285,7]
[356002539,1741792239301,-151.183645,0.000285,7]
[356002541,1741792239311,-151.0,0.000285,7]
[356002543,1741792239323,-151.0,0.000285,7]
[356002545,1741792239332,-151.0,0.000285,7]
[356002547,1741792239342,-151.704655,0.000285,7]
[356002549,1741792239351,-222.820358,0.000285,7]
[356002551,1741792239361,-153.04394,0.000285,7]
[356002553,1741792239370,-151.0,0.000285,7]
[356002555,1741792239380,-242.991163,0.000285,7]
[356002557,1741792239389,-151.0,0.000285,7]
[356002559,1741792239399,-242.991163,0.000285,7]
[356002561,1741792239410,-166.420837,0.000285,7]
[356002563,1741792239419,-166.420837,0.000285,7]
[356002565,1741792239428,-151.0,0.000285,7]
[356002567,1741792239438,-151.0,0.000285,7]
[356002569,1741792239447,-900.0,0.00028528,10]
[356002571,1741792239456,-900.0,0.00028528,10]
[356002573,1741792239465,-900.0,0.00028528,10]
[356002574,1741792239474,-900.0,0.00028528,10]
[356002576,1741792239484,-900.0,0.00028528,10]
[356002578,1741792239493,-900.0,0.00028528,10]
[356002580,1741792239502,-900.0,0.00028528,10]
[356002582,1741792239511,-900.0,0.00028528,10]
[356002584,1741792239520,-900.0,0.00028528,10]
[356002586,1741792239530,-900.0,0.00028528,10]
[356002588,1741792239539,-1294.60644127,0.0002854,2]
[356002590,1741792239549,-71849.38231925,0.00028548,2]
[356002592,1741792239558,-498.53857494,0.00028572,2]
[356002594,1741792239567,-36050.61499741,0.00028572,2]
[356002596,1741792239577,-153.77,0.00028574,2]
[356002598,1741792239587,-417.27633469,0.00028575,2]
[356002600,1741792239596,-152.089433,0.00028575,7]
[356002602,1741792239605,-151.0,0.00028575,7]
[356002604,1741792239615,-151.0,0.00028575,7]
[356002606,1741792239625,-151.0,0.00028575,7]
[356002608,1741792239636,-151.0,0.00028575,7]
[356002610,1741792239645,-268.274466,0.00028575,7]
[356002612,1741792239654,-189.305196,0.00028575,7]
[356002614,1741792239664,-151.0,0.00028575,7]
[356002616,1741792239674,-151.0,0.00028575,7]
[356002619,1741792239683,-151.0,0.00028575,7]
[356002622,1741792239692,-151.0,0.00028575,7]
[356002624,1741792239701,-151.0,0.00028575,7]
[356002626,1741792239710,-151.0,0.00028575,7]
[356002628,1741792239720,-151.0,0.00028575,7]
[356002630,1741792239729,-151.0,0.00028575,7]
[356002632,1741792239738,-151.0,0.00028575,7]
[356002634,1741792239748,-151.0,0.00028575,7]
[356002636,1741792239760,-212.96443,0.00028575,7]
[356002638,1741792239770,-152.191684,0.00028575,7]
[356002640,1741792239780,-385.011038,0.00028575,7]
[356002642,1741792239789,-385.011038,0.00028575,7]
[356002644,1741792239799,-385.011038,0.00028575,7]
[356002646,1741792239808,-385.011038,0.00028575,7]
[356002648,1741792239817,-385.011038,0.00028575,7]
[356002650,1741792239828,-385.011038,0.00028575,7]
[356002652,1741792239838,-385.011038,0.00028575,7]
[356002654,1741792239849,-385.011038,0.00028575,7]
[356002655,1741792239858,-151.0,0.00028575,7]
[356002657,1741792239867,-385.011038,0.00028575,7]
[356002659,1741792239877,-151.0,0.00028575,7]
[356002661,1741792239886,-385.011038,0.00028575,7]
[356002663,1741792239895,-151.0,0.00028575,7]
[356002665,1741792239905,-385.011038,0.00028575,7]
[356002667,1741792239914,-151.0,0.00028575,7]
[356002669,1741792239924,-385.011038,0.00028575,7]
[356002671,1741792239935,-151.0,0.00028575,7]
[356002673,1741792239944,-151.0,0.00028575,7]
[356002675,1741792239954,-151.0,0.00028575,7]
[356002677,1741792239964,-151.0,0.00028575,7]
[356002679,1741792239974,-385.011038,0.00028575,7]
[356002681,1741792239983,-385.011038,0.00028575,7]
[356002682,1741792239993,-385.011038,0.00028575,7]
[356002684,1741792240004,-385.011044,0.00028575,7]
[356002686,1741792240013,-151.0,0.00028575,7]
[356002688,1741792240023,-151.567284,0.00028575,7]
[356002690,1741792240032,-151.0,0.00028575,7]
[356002692,1741792240042,-152.650673,0.00028575,7]
[356002693,1741792240051,-151.921921,0.00028575,7]
[356002695,1741792240060,-200.0,0.0002858,2]
[356002697,1741792240069,-200.0,0.0002858,2]
[356002699,1741792240081,-200.0,0.0002858,2]
[356002701,1741792240091,-156.77,0.00028582,120]
[356002703,1741792240100,-500.0,0.00028591,2]
[356002705,1741792240110,-500.0,0.00028591,2]
[356002707,1741792240120,-500.0,0.00028591,2]
[356002709,1741792240130,-500.0,0.00028591,2]
[356002711,1741792240139,-500.0,0.00028591,2]
[356002713,1741792240149,-500.0,0.00028591,2]
[356002715,1741792240159,-500.0,0.00028591,2]
[356002717,1741792240169,-663.90478581,0.00028591,2]
[356002719,1741792240178,-2110.0,0.00028592,2]
[356002721,1741792240187,-1062.0,0.00028592,5]
[356002723,1741792240197,-3385.54,0.000286,2]
[356002725,1741792240206,-1429.2874,0.000286,2]
[356002727,1741792240215,-2947.9088,0.000286,2]
[356002729,1741792240224,-1038.1722,0.000286,2]
[356002731,1741792240235,-151.0,0.00028671,7]
[356002733,1741792240244,-151.0,0.00028671,7]
[356002735,1741792240253,-151.0,0.00028671,7]
[356002737,1741792240262,-151.0,0.00028671,7]
[356002739,1741792240271,-151.0,0.00028671,7]
[356002741,1741792240280,-151.0,0.00028671,7]
[356002742,1741792240290,-151.0,0.00028671,7]
[356002744,1741792240299,-151.0,0.00028671,7]
[356002746,1741792240309,-151.0,0.00028671,7]
[356002748,1741792240318,-151.0,0.00028671,7]
[356002750,1741792240330,-151.0,0.00028671,7]
[356002751,1741792240339,-151.0,0.00028671,7]
[356002752,1741792240348,-151.0,0.00028671,7]
[356002753,1741792240359,-151.0,0.00028671,7]
[356002754,1741792240368,-151.0,0.00028671,7]
[356002755,1741792240378,-151.0,0.00028671,7]
[356002756,1741792240387,-151.0,0.00028671,7]
[356002757,1741792240396,-151.0,0.00028671,7]
[356002758,1741792240406,-151.0,0.00028671,7]
[356002759,1741792240415,-151.0,0.00028671,7]
[356002760,1741792240424,-232.901383,0.00028671,7]
[356002761,1741792240433,-202.18264,0.00028671,7]
[356002762,1741792240442,-151.0,0.00028671,7]
[356002763,1741792240451,-151.0,0.00028671,7]
[356002764,1741792240460,-151.0,0.00028671,7]
[356002765,1741792240469,-151.0,0.00028671,7]
[356002766,1741792240479,-151.0,0.00028671,7]
[356002768,1741792240488,-151.0,0.00028671,7]
[356002770,1741792240497,-151.0,0.00028671,7]
[356002772,1741792240506,-151.0,0.00028671,7]
[356002774,1741792240515,-151.0,0.00028671,7]
[356002776,1741792240524,-151.0,0.00028671,7]
[356002778,1741792240534,-300.020522,0.00028671,7]
[356002780,1741792240543,-3060.80170284,0.00028672,15]
[356002782,1741792240553,-6533.03804274,0.00028672,2]
[356002784,1741792240563,-151.0,0.00028672,7]
[356002786,1741792240572,-151.0,0.00028672,7]
[356002788,1741792240582,-151.0,0.00028672,7]
[356002790,1741792240592,-151.0,0.00028672,7]
[356002792,1741792240601,-151.72263,0.00028672,7]
[356002794,1741792240610,-151.878646,0.00028672,7]
[356002796,1741792240619,-151.0,0.00028672,7]
[356002798,1741792240628,-197.74823,0.00028672,7]
[356002800,1741792240638,-151.0,0.00028672,7]
[356002802,1741792240648,-151.0,0.00028672,7]
[356002804,1741792240657,-1000.0,0.00028672,7]
[356002806,1741792240666,-151.0,0.00028672,7]
[356002808,1741792240675,-151.0,0.00028672,7]
[356002810,1741792240685,-1000.0,0.00028672,7]
[356002812,1741792240694,-260.84989,0.00028672,7]
[356002814,1741792240704,-1000.0,0.00028672,7]
[356002828,1741792240838,-151.0,0.00028672,7]
[356002830,1741792240850,-151.0,0.00028672,7]
[356002832,1741792240860,-1000.0,0.00028672,7]
[356002834,1741792240870,-301.948984,0.00028672,7]
[356002836,1741792240880,-1000.0,0.00028672,7]
[356002838,1741792240889,-1000.0,0.00028672,7]
[356002840,1741792240898,-1000.0,0.00028672,7]
[356002842,1741792240907,-1000.0,0.00028672,7]